[Event "Titled Tuesday Blitz July 20 2021"]
[White "Dang, Hoang Son"]
[Black "kai_nov"]
[WhiteFideId "12402435"]
[WhiteElo "2248"]
[BlackElo "2333"]
[Result "1-0"]
[Round "11"]
[TimeControl "180+1"]
[Date "2021.07.21"]
[WhiteClock "0:01:03"]
[BlackClock "0:00:07"]

1. e4 {[%clk 0:03:00]}  c5 {[%clk 0:02:59]} 2. Nf3 {[%clk 0:03:01]}  Nc6 {[%clk 0:02:58]} 3. d4 {[%clk 0:03:01]}  cxd4 {[%clk 0:02:58]} 4. Nxd4 {[%clk 0:03:02]}  Nf6 {[%clk 0:02:58]} 5. Nc3 {[%clk 0:03:03]}  e5 {[%clk 0:02:57]} 6. Ndb5 {[%clk 0:03:03]}  d6 {[%clk 0:02:55]} 7. Nd5 {[%clk 0:03:03]}  Nxd5 {[%clk 0:02:53]} 8. exd5 {[%clk 0:03:04]}  Nb8 {[%clk 0:02:53]} 9. a4 {[%clk 0:03:03]}  Be7 {[%clk 0:02:45]} 10. Be2 {[%clk 0:03:02]}  a6 {[%clk 0:02:39]} 11. Na3 {[%clk 0:03:01]}  O-O {[%clk 0:02:36]} 12. Nc4 {[%clk 0:03:00]}  Bf5 {[%clk 0:02:26]} 13. O-O {[%clk 0:02:52]}  Nd7 {[%clk 0:02:25]} 14. Bg4 {[%clk 0:02:51]}  Bxg4 {[%clk 0:02:18]} 15. Qxg4 {[%clk 0:02:51]}  Rc8 {[%clk 0:02:12]} 16. b3 {[%clk 0:02:50]}  f5 {[%clk 0:02:08]} 17. Qe2 {[%clk 0:02:48]}  Nb6 {[%clk 0:01:15]} 18. Nxb6 {[%clk 0:02:35]}  Qxb6 {[%clk 0:01:14]} 19. Be3 {[%clk 0:02:26]}  Qb4 {[%clk 0:01:04]} 20. Rac1 {[%clk 0:01:54]}  e4 {[%clk 0:00:38]} 21. Rfd1 {[%clk 0:01:47]}  Bf6 {[%clk 0:00:31]} 22. Bf4 {[%clk 0:01:45]}  Rfe8 {[%clk 0:00:24]} 23. h3 {[%clk 0:01:34]}  Be5 {[%clk 0:00:24]} 24. Bd2 {[%clk 0:01:30]}  Bc3 {[%clk 0:00:24]} 25. Qe3 {[%clk 0:01:25]}  Bxd2 {[%clk 0:00:23]} 26. Rxd2 {[%clk 0:01:25]}  Rc3 {[%clk 0:00:23]} 27. Qf4 {[%clk 0:01:25]}  g6 {[%clk 0:00:21]} 28. Re1 {[%clk 0:01:16]}  Re5 {[%clk 0:00:20]} 29. Qg5 {[%clk 0:01:12]}  Kg7 {[%clk 0:00:20]} 30. h4 {[%clk 0:01:11]}  Qc5 {[%clk 0:00:18]} 31. Re3 {[%clk 0:01:10]}  Rxc2 {[%clk 0:00:17]} 32. Rxc2 {[%clk 0:01:08]}  Qxc2 {[%clk 0:00:17]} 33. h5 {[%clk 0:01:08]}  Qd1+ {[%clk 0:00:17]} 34. Kh2 {[%clk 0:01:08]}  Qxh5+ {[%clk 0:00:17]} 35. Qxh5 {[%clk 0:01:07]}  gxh5 {[%clk 0:00:18]} 36. Kg3 {[%clk 0:01:07]}  Rxd5 {[%clk 0:00:17]} 37. Kf4 {[%clk 0:01:08]}  Kf6 {[%clk 0:00:17]} 38. Rh3 {[%clk 0:01:08]}  Rd3 {[%clk 0:00:14]} 39. Rxh5 {[%clk 0:01:08]}  Rxb3 {[%clk 0:00:14]} 40. Rxf5+ {[%clk 0:01:07]}  Ke6 {[%clk 0:00:14]} 41. Rh5 {[%clk 0:01:07]}  Rb4 {[%clk 0:00:12]} 42. a5 {[%clk 0:01:06]}  d5 {[%clk 0:00:11]} 43. Rh6+ {[%clk 0:01:06]}  Kf7 {[%clk 0:00:10]} 44. Rxh7+ {[%clk 0:01:06]}  Kf6 {[%clk 0:00:10]} 45. Rh6+ {[%clk 0:01:06]}  Kg7 {[%clk 0:00:10]} 46. Rd6 {[%clk 0:01:02]}  Rb5 {[%clk 0:00:10]} 47. g4 {[%clk 0:00:58]}  Rxa5 {[%clk 0:00:09]} 48. Rd7+ {[%clk 0:00:58]}  Kf6 {[%clk 0:00:09]} 49. Rxb7 {[%clk 0:00:59]}  Rb5 {[%clk 0:00:08]} 50. Ra7 {[%clk 0:00:59]}  a5 {[%clk 0:00:08]} 51. Ra6+ {[%clk 0:00:59]}  Ke7 {[%clk 0:00:08]} 52. Ke5 {[%clk 0:00:59]}  Rb2 {[%clk 0:00:08]} 53. Ra7+ {[%clk 0:00:59]}  Kd8 {[%clk 0:00:08]} 54. Kxd5 {[%clk 0:00:57]}  Rxf2 {[%clk 0:00:08]} 55. Kxe4 {[%clk 0:00:58]}  Ke8 {[%clk 0:00:07]} 56. Rxa5 {[%clk 0:00:56]}  Kf7 {[%clk 0:00:08]} 57. Rf5+ {[%clk 0:00:56]}  Rxf5 {[%clk 0:00:06]} 58. Kxf5 {[%clk 0:00:57]}  Kg7 {[%clk 0:00:05]} 59. Kg5 {[%clk 0:00:57]}  Kh7 {[%clk 0:00:06]} 60. Kf6 {[%clk 0:00:58]}  Kh6 {[%clk 0:00:06]} 61. g5+ {[%clk 0:00:58]}  Kh7 {[%clk 0:00:06]} 62. Kf7 {[%clk 0:00:58]}  Kh8 {[%clk 0:00:06]} 63. Kg6 {[%clk 0:00:59]}  Kg8 {[%clk 0:00:06]} 64. Kh6 {[%clk 0:01:00]}  Kh8 {[%clk 0:00:06]} 65. g6 {[%clk 0:01:00]}  Kg8 {[%clk 0:00:07]} 66. g7 {[%clk 0:01:01]}  Kf7 {[%clk 0:00:07]} 67. Kh7 {[%clk 0:01:02]}  Ke7 {[%clk 0:00:07]} 68. g8=Q {[%clk 0:01:03]} 1-0


[Site "https://www.chess.com"]

[Event "Titled Tuesday Blitz July 20 2021"]
[White "Derige Kane, Yan"]
[Black "Boidiya, Sidi"]
[WhiteFideId "20665431"]
[BlackFideId "19600100"]
[WhiteElo "2169"]
[BlackElo "2113"]
[Result "0-1"]
[Round "11"]
[TimeControl "180+1"]
[Date "2021.07.21"]
[WhiteClock "0:00:17"]
[BlackClock "0:00:20"]

1. d4 {[%clk 0:02:59]}  d5 {[%clk 0:02:58]} 2. c4 {[%clk 0:02:58]}  e5 {[%clk 0:02:57]} 3. Nc3 {[%clk 0:02:59]}  exd4 {[%clk 0:02:55]} 4. Qxd4 {[%clk 0:03:00]}  Nc6 {[%clk 0:02:54]} 5. Qxd5 {[%clk 0:03:00]}  Be6 {[%clk 0:02:54]} 6. Qb5 {[%clk 0:02:48]}  a6 {[%clk 0:02:50]} 7. Qa4 {[%clk 0:02:48]}  Qd7 {[%clk 0:02:43]} 8. Bd2 {[%clk 0:02:40]}  O-O-O {[%clk 0:02:39]} 9. O-O-O {[%clk 0:02:40]}  Nf6 {[%clk 0:02:31]} 10. Nf3 {[%clk 0:02:36]}  Bc5 {[%clk 0:02:26]} 11. e3 {[%clk 0:02:33]}  Qe7 {[%clk 0:02:08]} 12. h3 {[%clk 0:02:26]}  Kb8 {[%clk 0:02:03]} 13. Be2 {[%clk 0:02:25]}  Bf5 {[%clk 0:02:00]} 14. g4 {[%clk 0:02:18]}  Bg6 {[%clk 0:01:55]} 15. g5 {[%clk 0:02:18]}  Ne4 {[%clk 0:01:52]} 16. Nd5 {[%clk 0:02:18]}  Qe8 {[%clk 0:01:32]} 17. Rhf1 {[%clk 0:02:16]}  Ba7 {[%clk 0:01:15]} 18. h4 {[%clk 0:02:09]}  Nc5 {[%clk 0:01:11]} 19. Qc2 {[%clk 0:00:51]}  Bxc2 {[%clk 0:01:08]} 20. Kxc2 {[%clk 0:00:52]}  Qe4+ {[%clk 0:01:07]} 21. Kc1 {[%clk 0:00:52]}  Nd3+ {[%clk 0:01:04]} 22. Bxd3 {[%clk 0:00:47]}  Qxd3 {[%clk 0:01:02]} 23. b3 {[%clk 0:00:48]}  Bc5 {[%clk 0:00:46]} 24. Bb4 {[%clk 0:00:35]}  Qf5 {[%clk 0:00:32]} 25. Bxc5 {[%clk 0:00:29]}  Qxf3 {[%clk 0:00:29]} 26. Rd2 {[%clk 0:00:25]}  Qe4 {[%clk 0:00:23]} 27. h5 {[%clk 0:00:19]}  Qe5 {[%clk 0:00:20]} 28. f4 {[%clk 0:00:18]}  Qa1+ {[%clk 0:00:20]} 29. Kc2 {[%clk 0:00:17]}  Qxf1 {[%clk 0:00:20]} 0-1


[Site "https://www.chess.com"]

[Event "Titled Tuesday Blitz July 20 2021"]
[White "DominikPedzich"]
[Black "Nguyen, Quoc Hy"]
[BlackFideId "12410853"]
[WhiteElo "2421"]
[BlackElo "1975"]
[Result "1-0"]
[Round "11"]
[TimeControl "180+1"]
[Date "2021.07.21"]
[WhiteClock "0:00:41"]
[BlackClock "0:00:39"]

1. e4 {[%clk 0:03:00]}  c5 {[%clk 0:02:58]} 2. Nf3 {[%clk 0:03:01]}  d6 {[%clk 0:02:57]} 3. Bb5+ {[%clk 0:03:01]}  Bd7 {[%clk 0:02:57]} 4. Bxd7+ {[%clk 0:03:01]}  Qxd7 {[%clk 0:02:58]} 5. O-O {[%clk 0:03:01]}  g6 {[%clk 0:02:58]} 6. c3 {[%clk 0:03:01]}  Nf6 {[%clk 0:02:58]} 7. Qe2 {[%clk 0:03:00]}  Bg7 {[%clk 0:02:59]} 8. d4 {[%clk 0:03:00]}  O-O {[%clk 0:02:59]} 9. Rd1 {[%clk 0:03:00]}  Qc7 {[%clk 0:02:58]} 10. Bg5 {[%clk 0:02:59]}  Nc6 {[%clk 0:02:58]} 11. e5 {[%clk 0:02:58]}  Nd5 {[%clk 0:02:58]} 12. dxc5 {[%clk 0:02:54]}  f6 {[%clk 0:02:38]} 13. Rxd5 {[%clk 0:02:46]}  fxg5 {[%clk 0:02:38]} 14. exd6 {[%clk 0:02:44]}  exd6 {[%clk 0:02:38]} 15. cxd6 {[%clk 0:02:34]}  Qf7 {[%clk 0:02:38]} 16. Rxg5 {[%clk 0:02:14]}  Rae8 {[%clk 0:02:36]} 17. Qd1 {[%clk 0:02:13]}  Ne5 {[%clk 0:02:29]} 18. Nbd2 {[%clk 0:02:06]}  Nd3 {[%clk 0:02:26]} 19. Qb3 {[%clk 0:01:58]}  Re6 {[%clk 0:02:20]} 20. Rd5 {[%clk 0:01:50]}  Nf4 {[%clk 0:02:02]} 21. Rb5 {[%clk 0:01:38]}  a6 {[%clk 0:01:52]} 22. Rxb7 {[%clk 0:01:33]}  Qf5 {[%clk 0:01:48]} 23. Re1 {[%clk 0:01:25]}  Kh8 {[%clk 0:01:29]} 24. Rxe6 {[%clk 0:01:22]}  Nxe6 {[%clk 0:01:30]} 25. Re7 {[%clk 0:01:15]}  Nf4 {[%clk 0:01:26]} 26. h3 {[%clk 0:01:03]}  Bh6 {[%clk 0:01:25]} 27. Qc4 {[%clk 0:00:58]}  Nxh3+ {[%clk 0:00:42]} 28. gxh3 {[%clk 0:00:57]}  Bxd2 {[%clk 0:00:42]} 29. Qd4+ {[%clk 0:00:56]}  Rf6 {[%clk 0:00:39]} 30. Nxd2 {[%clk 0:00:41]} 1-0


[Site "https://www.chess.com"]

[Event "Titled Tuesday Blitz July 20 2021"]
[White "Wagner, Dinara"]
[Black "Harshavardhan G B"]
[WhiteFideId "24157570"]
[BlackFideId "25059009"]
[WhiteElo "2260"]
[BlackElo "1825"]
[Result "0-1"]
[Round "11"]
[TimeControl "180+1"]
[Date "2021.07.21"]
[WhiteClock "0:00:04"]
[BlackClock "0:00:26"]

1. d4 {[%clk 0:03:00]}  Nf6 {[%clk 0:02:59]} 2. c4 {[%clk 0:03:00]}  e6 {[%clk 0:02:59]} 3. Nf3 {[%clk 0:03:00]}  b6 {[%clk 0:02:58]} 4. a3 {[%clk 0:03:00]}  Bb7 {[%clk 0:02:55]} 5. Nc3 {[%clk 0:02:59]}  g6 {[%clk 0:02:56]} 6. d5 {[%clk 0:02:58]}  Bg7 {[%clk 0:02:55]} 7. e4 {[%clk 0:02:57]}  O-O {[%clk 0:02:53]} 8. Bd3 {[%clk 0:02:53]}  d6 {[%clk 0:02:51]} 9. O-O {[%clk 0:02:53]}  e5 {[%clk 0:02:50]} 10. b4 {[%clk 0:02:51]}  Nbd7 {[%clk 0:02:48]} 11. h3 {[%clk 0:02:34]}  Nh5 {[%clk 0:02:38]} 12. Be3 {[%clk 0:02:31]}  f5 {[%clk 0:02:36]} 13. exf5 {[%clk 0:02:28]}  gxf5 {[%clk 0:02:36]} 14. Ng5 {[%clk 0:02:26]}  Qe8 {[%clk 0:02:32]} 15. Ne6 {[%clk 0:02:24]}  Rc8 {[%clk 0:02:25]} 16. Nxg7 {[%clk 0:02:10]}  Nxg7 {[%clk 0:02:26]} 17. Bh6 {[%clk 0:02:02]}  Qg6 {[%clk 0:02:23]} 18. Bxg7 {[%clk 0:02:02]}  Kxg7 {[%clk 0:02:23]} 19. Rc1 {[%clk 0:01:52]}  c6 {[%clk 0:02:20]} 20. Be2 {[%clk 0:01:50]}  e4 {[%clk 0:02:13]} 21. dxc6 {[%clk 0:01:45]}  Bxc6 {[%clk 0:02:10]} 22. Nd5 {[%clk 0:01:45]}  Qg5 {[%clk 0:01:51]} 23. Qd4+ {[%clk 0:01:36]}  Ne5 {[%clk 0:01:49]} 24. f4 {[%clk 0:01:32]}  exf3 {[%clk 0:01:47]} 25. Bxf3 {[%clk 0:01:31]}  Bxd5 {[%clk 0:01:42]} 26. Qxd5 {[%clk 0:01:25]}  Rcd8 {[%clk 0:01:34]} 27. Rcd1 {[%clk 0:01:19]}  Rf6 {[%clk 0:01:25]} 28. Qd4 {[%clk 0:01:16]}  Rg6 {[%clk 0:01:20]} 29. Bd5 {[%clk 0:01:15]}  Re8 {[%clk 0:01:16]} 30. Rde1 {[%clk 0:01:12]}  Kh6 {[%clk 0:01:09]} 31. Qe3 {[%clk 0:00:43]}  f4 {[%clk 0:01:06]} 32. Qd2 {[%clk 0:00:31]}  Rf8 {[%clk 0:01:00]} 33. Kh1 {[%clk 0:00:30]}  Kg7 {[%clk 0:00:58]} 34. Qd4 {[%clk 0:00:30]}  Rff6 {[%clk 0:00:57]} 35. c5 {[%clk 0:00:29]}  f3 {[%clk 0:00:51]} 36. Rf2 {[%clk 0:00:16]}  bxc5 {[%clk 0:00:42]} 37. bxc5 {[%clk 0:00:16]}  Qg3 {[%clk 0:00:37]} 38. Rd1 {[%clk 0:00:04]}  Ng4 {[%clk 0:00:26]} 39. hxg4 {[%clk 0:00:04]}  Rh6+ {[%clk 0:00:25]} 40. Kg1 {[%clk 0:00:03]}  Qh2+ {[%clk 0:00:25]} 41. Kf1 {[%clk 0:00:04]}  Qh1# {[%clk 0:00:26]} 0-1


[Site "https://www.chess.com"]

[Event "Titled Tuesday Blitz July 20 2021"]
[White "Estrada Nieto, Julian"]
[Black "Stepak, Yedael"]
[WhiteFideId "5101018"]
[BlackFideId "2800454"]
[WhiteElo "2270"]
[BlackElo "2146"]
[Result "0-1"]
[Round "11"]
[TimeControl "180+1"]
[Date "2021.07.21"]
[WhiteClock "0:00:02"]
[BlackClock "0:00:35"]

1. e4 {[%clk 0:03:00]}  c5 {[%clk 0:02:53]} 2. Nf3 {[%clk 0:03:00]}  e6 {[%clk 0:02:51]} 3. c3 {[%clk 0:02:59]}  a6 {[%clk 0:02:51]} 4. d4 {[%clk 0:02:58]}  Qc7 {[%clk 0:02:51]} 5. Bd3 {[%clk 0:02:56]}  d6 {[%clk 0:02:51]} 6. O-O {[%clk 0:02:56]}  e5 {[%clk 0:02:51]} 7. Re1 {[%clk 0:02:37]}  Nf6 {[%clk 0:02:50]} 8. Bg5 {[%clk 0:02:35]}  Be7 {[%clk 0:02:49]} 9. Nbd2 {[%clk 0:02:30]}  Nc6 {[%clk 0:02:49]} 10. dxe5 {[%clk 0:02:28]}  Nxe5 {[%clk 0:02:42]} 11. Nxe5 {[%clk 0:02:28]}  dxe5 {[%clk 0:02:42]} 12. a4 {[%clk 0:02:22]}  b6 {[%clk 0:02:42]} 13. Nc4 {[%clk 0:02:16]}  Bb7 {[%clk 0:02:28]} 14. Qf3 {[%clk 0:01:58]}  Rd8 {[%clk 0:02:22]} 15. Rad1 {[%clk 0:01:37]}  O-O {[%clk 0:02:21]} 16. Bc2 {[%clk 0:01:28]}  Rxd1 {[%clk 0:02:17]} 17. Rxd1 {[%clk 0:01:27]}  Rd8 {[%clk 0:02:12]} 18. Bxf6 {[%clk 0:01:22]}  Bxf6 {[%clk 0:02:06]} 19. Ne3 {[%clk 0:01:21]}  Rxd1+ {[%clk 0:02:01]} 20. Qxd1 {[%clk 0:01:20]}  Qd8 {[%clk 0:01:57]} 21. Qxd8+ {[%clk 0:01:05]}  Bxd8 {[%clk 0:01:56]} 22. Kf1 {[%clk 0:01:00]}  g6 {[%clk 0:01:54]} 23. Ke2 {[%clk 0:00:57]}  Kf8 {[%clk 0:01:53]} 24. Bb3 {[%clk 0:00:56]}  Bxe4 {[%clk 0:01:47]} 25. Bc4 {[%clk 0:00:51]}  Bb7 {[%clk 0:01:45]} 26. Bd5 {[%clk 0:00:48]}  Bxd5 {[%clk 0:01:42]} 27. Nxd5 {[%clk 0:00:48]}  Ke8 {[%clk 0:01:41]} 28. Kd3 {[%clk 0:00:41]}  Kd7 {[%clk 0:01:40]} 29. c4 {[%clk 0:00:38]}  Ke6 {[%clk 0:01:37]} 30. b3 {[%clk 0:00:35]}  f5 {[%clk 0:01:37]} 31. f3 {[%clk 0:00:35]}  h5 {[%clk 0:01:35]} 32. h3 {[%clk 0:00:31]}  Kd6 {[%clk 0:01:32]} 33. g4 {[%clk 0:00:24]}  e4+ {[%clk 0:01:24]} 34. fxe4 {[%clk 0:00:20]}  fxg4 {[%clk 0:01:23]} 35. hxg4 {[%clk 0:00:19]}  hxg4 {[%clk 0:01:16]} 36. Ke3 {[%clk 0:00:14]}  Bg5+ {[%clk 0:01:13]} 37. Kf2 {[%clk 0:00:12]}  Ke5 {[%clk 0:01:06]} 38. Kg3 {[%clk 0:00:11]}  Kxe4 {[%clk 0:01:05]} 39. Nxb6 {[%clk 0:00:08]}  Kd3 {[%clk 0:00:59]} 40. Kxg4 {[%clk 0:00:07]}  Be7 {[%clk 0:00:56]} 41. Nd5 {[%clk 0:00:06]}  Bd8 {[%clk 0:00:55]} 42. Kf4 {[%clk 0:00:03]}  Kc2 {[%clk 0:00:55]} 43. b4 {[%clk 0:00:03]}  cxb4 {[%clk 0:00:55]} 44. Nxb4+ {[%clk 0:00:03]}  Kb3 {[%clk 0:00:50]} 45. Nc6 {[%clk 0:00:02]}  Bc7+ {[%clk 0:00:49]} 46. Ke4 {[%clk 0:00:02]}  Kxa4 {[%clk 0:00:48]} 47. Ne7 {[%clk 0:00:03]}  g5 {[%clk 0:00:44]} 48. Kd5 {[%clk 0:00:03]}  g4 {[%clk 0:00:43]} 49. Nf5 {[%clk 0:00:02]}  g3 {[%clk 0:00:41]} 50. Nh4 {[%clk 0:00:03]}  a5 {[%clk 0:00:40]} 51. c5 {[%clk 0:00:03]}  Kb5 {[%clk 0:00:39]} 52. c6 {[%clk 0:00:03]}  a4 {[%clk 0:00:39]} 53. Nf3 {[%clk 0:00:02]}  a3 {[%clk 0:00:37]} 54. Nd4+ {[%clk 0:00:02]}  Kb6 {[%clk 0:00:35]} 0-1


[Site "https://www.chess.com"]

[Event "Titled Tuesday Blitz July 20 2021"]
[White "Florescu, Codrut-Constantin"]
[Black "Bach, Ngoc Thuy Duong"]
[WhiteFideId "1202200"]
[BlackFideId "12408956"]
[WhiteElo "2243"]
[BlackElo "1896"]
[Result "0-1"]
[Round "11"]
[TimeControl "180+1"]
[Date "2021.07.21"]
[WhiteClock "0:00:29"]
[BlackClock "0:00:18"]

1. d4 {[%clk 0:03:00]}  d5 {[%clk 0:02:59]} 2. c4 {[%clk 0:03:00]}  e6 {[%clk 0:02:59]} 3. Nf3 {[%clk 0:02:59]}  c6 {[%clk 0:02:59]} 4. Qc2 {[%clk 0:02:58]}  dxc4 {[%clk 0:02:55]} 5. Qxc4 {[%clk 0:02:57]}  b5 {[%clk 0:02:55]} 6. Qc2 {[%clk 0:02:51]}  Bb7 {[%clk 0:02:56]} 7. g3 {[%clk 0:02:47]}  Nd7 {[%clk 0:02:53]} 8. Bg2 {[%clk 0:02:46]}  Ngf6 {[%clk 0:02:51]} 9. O-O {[%clk 0:02:45]}  a6 {[%clk 0:02:49]} 10. a4 {[%clk 0:02:44]}  Be7 {[%clk 0:02:47]} 11. Bf4 {[%clk 0:02:40]}  O-O {[%clk 0:02:45]} 12. Nbd2 {[%clk 0:02:40]}  Nb6 {[%clk 0:02:42]} 13. b3 {[%clk 0:02:38]}  Rc8 {[%clk 0:02:40]} 14. Ne1 {[%clk 0:01:55]}  Nbd5 {[%clk 0:01:46]} 15. Be5 {[%clk 0:01:41]}  c5 {[%clk 0:01:42]} 16. dxc5 {[%clk 0:01:32]}  Bxc5 {[%clk 0:01:41]} 17. Qb2 {[%clk 0:01:28]}  Qb6 {[%clk 0:01:22]} 18. axb5 {[%clk 0:01:26]}  axb5 {[%clk 0:01:20]} 19. Nd3 {[%clk 0:01:25]}  Rfd8 {[%clk 0:01:18]} 20. Nxc5 {[%clk 0:01:24]}  Qxc5 {[%clk 0:01:16]} 21. Ne4 {[%clk 0:01:20]}  Nxe4 {[%clk 0:01:14]} 22. Bxe4 {[%clk 0:01:20]}  f6 {[%clk 0:01:11]} 23. Bd4 {[%clk 0:01:19]}  Qb4 {[%clk 0:00:57]} 24. Rfd1 {[%clk 0:01:08]}  e5 {[%clk 0:00:54]} 25. Ba7 {[%clk 0:00:55]}  Qxe4 {[%clk 0:00:51]} 26. f3 {[%clk 0:00:53]}  Qb4 {[%clk 0:00:38]} 27. Bf2 {[%clk 0:00:47]}  Qc3 {[%clk 0:00:35]} 28. Qb1 {[%clk 0:00:37]}  Ne3 {[%clk 0:00:28]} 29. Rxd8+ {[%clk 0:00:36]}  Rxd8 {[%clk 0:00:27]} 30. Qa2 {[%clk 0:00:31]}  Ra8 {[%clk 0:00:20]} 31. Qxa8+ {[%clk 0:00:31]}  Bxa8 {[%clk 0:00:20]} 32. Rxa8+ {[%clk 0:00:32]}  Kf7 {[%clk 0:00:21]} 33. Ra7+ {[%clk 0:00:32]}  Kg6 {[%clk 0:00:21]} 34. h4 {[%clk 0:00:32]}  Qd2 {[%clk 0:00:20]} 35. h5+ {[%clk 0:00:30]}  Kxh5 {[%clk 0:00:20]} 36. Rxg7 {[%clk 0:00:29]}  Qd1+ {[%clk 0:00:19]} 37. Kh2 {[%clk 0:00:29]}  Qxe2 {[%clk 0:00:19]} 38. g4+ {[%clk 0:00:29]}  Kh6 {[%clk 0:00:19]} 39. Kg3 {[%clk 0:00:29]}  Kxg7 {[%clk 0:00:18]} 0-1


[Site "https://www.chess.com"]

[Event "Titled Tuesday Blitz July 20 2021"]
[White "Gabrielian, Artur"]
[Black "Wilson, Elvin"]
[WhiteFideId "4131002"]
[BlackFideId "2014874"]
[WhiteElo "2523"]
[BlackElo "2346"]
[Result "1-0"]
[Round "11"]
[TimeControl "180+1"]
[Date "2021.07.21"]
[WhiteClock "0:00:47"]
[BlackClock "0:00:05"]

1. d4 {[%clk 0:03:00]}  Nf6 {[%clk 0:02:54]} 2. Bg5 {[%clk 0:02:59]}  e6 {[%clk 0:02:53]} 3. e4 {[%clk 0:02:59]}  h6 {[%clk 0:02:53]} 4. Bxf6 {[%clk 0:02:59]}  Qxf6 {[%clk 0:02:54]} 5. c3 {[%clk 0:02:59]}  d6 {[%clk 0:02:52]} 6. Bd3 {[%clk 0:02:59]}  e5 {[%clk 0:02:46]} 7. Ne2 {[%clk 0:02:58]}  g6 {[%clk 0:02:46]} 8. O-O {[%clk 0:02:58]}  Bg7 {[%clk 0:02:47]} 9. f4 {[%clk 0:02:57]}  Qe7 {[%clk 0:02:47]} 10. f5 {[%clk 0:02:56]}  O-O {[%clk 0:02:42]} 11. Nd2 {[%clk 0:02:55]}  Nd7 {[%clk 0:02:39]} 12. Qb3 {[%clk 0:02:48]}  Kh7 {[%clk 0:02:36]} 13. Nf3 {[%clk 0:02:35]}  Nf6 {[%clk 0:02:21]} 14. Ng3 {[%clk 0:02:33]}  b6 {[%clk 0:02:06]} 15. dxe5 {[%clk 0:02:26]}  dxe5 {[%clk 0:02:05]} 16. Kh1 {[%clk 0:02:25]}  Bb7 {[%clk 0:01:52]} 17. Rae1 {[%clk 0:02:25]}  Rad8 {[%clk 0:01:48]} 18. Qc2 {[%clk 0:02:23]}  a5 {[%clk 0:01:41]} 19. a4 {[%clk 0:02:22]}  Nd7 {[%clk 0:01:38]} 20. Bc4 {[%clk 0:02:18]}  Nc5 {[%clk 0:01:36]} 21. b3 {[%clk 0:02:18]}  Rd7 {[%clk 0:01:26]} 22. h4 {[%clk 0:02:14]}  Rfd8 {[%clk 0:01:00]} 23. fxg6+ {[%clk 0:02:07]}  fxg6 {[%clk 0:00:59]} 24. h5 {[%clk 0:02:08]}  Nd3 {[%clk 0:00:52]} 25. hxg6+ {[%clk 0:02:06]}  Kxg6 {[%clk 0:00:43]} 26. Nf5 {[%clk 0:02:06]}  Qe8 {[%clk 0:00:19]} 27. Rd1 {[%clk 0:02:00]}  Nf4 {[%clk 0:00:17]} 28. Rxd7 {[%clk 0:01:57]}  Rxd7 {[%clk 0:00:17]} 29. g3 {[%clk 0:01:42]}  Ne6 {[%clk 0:00:16]} 30. Bd5 {[%clk 0:01:21]}  c6 {[%clk 0:00:15]} 31. Bc4 {[%clk 0:01:20]}  Kh7 {[%clk 0:00:14]} 32. Rd1 {[%clk 0:01:18]}  Nc5 {[%clk 0:00:14]} 33. b4 {[%clk 0:01:14]}  axb4 {[%clk 0:00:12]} 34. cxb4 {[%clk 0:01:14]}  Ne6 {[%clk 0:00:08]} 35. Rxd7 {[%clk 0:01:11]}  Qxd7 {[%clk 0:00:08]} 36. Kg2 {[%clk 0:01:10]}  Nd4 {[%clk 0:00:07]} 37. N3xd4 {[%clk 0:01:09]}  exd4 {[%clk 0:00:07]} 38. a5 {[%clk 0:01:02]}  bxa5 {[%clk 0:00:07]} 39. bxa5 {[%clk 0:01:02]}  Be5 {[%clk 0:00:07]} 40. a6 {[%clk 0:01:01]}  Ba8 {[%clk 0:00:07]} 41. Qb3 {[%clk 0:00:57]}  c5 {[%clk 0:00:07]} 42. Bd5 {[%clk 0:00:54]}  Bxd5 {[%clk 0:00:05]} 43. Qxd5 {[%clk 0:00:54]}  Qxd5 {[%clk 0:00:05]} 44. exd5 {[%clk 0:00:54]}  Bb8 {[%clk 0:00:06]} 45. Kf3 {[%clk 0:00:51]}  Kg6 {[%clk 0:00:06]} 46. g4 {[%clk 0:00:48]}  Kf6 {[%clk 0:00:05]} 47. Ke4 {[%clk 0:00:48]}  h5 {[%clk 0:00:05]} 48. gxh5 {[%clk 0:00:47]}  d3 {[%clk 0:00:05]} 49. Kxd3 {[%clk 0:00:47]}  Kxf5 {[%clk 0:00:06]} 50. Kc4 {[%clk 0:00:48]}  Ke5 {[%clk 0:00:05]} 51. h6 {[%clk 0:00:47]}  Ba7 {[%clk 0:00:04]} 52. h7 {[%clk 0:00:47]}  Ke4 {[%clk 0:00:05]} 53. h8=Q {[%clk 0:00:47]} 1-0


[Site "https://www.chess.com"]